[Event "Silves Open 2025"]
[Site "Fissul"]
[Date "2025.03.04"]
[Round "5.20"]
[White "Silverio, Vitor Luis De Jesus"]
[Black "Almeida, Marta Dias"]
[Result "1/2-1/2"]
[Annotator "NA RC"]
[ECO "A03"]
[WhiteElo "2143"]
[BlackElo "1790"]
[PlyCount "144"]
[EventDate "2025.03.03"]
[EventType "swiss"]
[EventCountry "POR"]
[SourceTitle "playchess.com"]
[Source "ChessBase"]
[SourceQuality "1"]
[TimeControl "5400+30"]

1. f4 {[%emt 1:31:00]} d5 {[%emt 1:31:00]} 2. Nf3 {[%emt 0:00:30]} Nf6 {[%emt 0:00:30]} 3. e3 {[%emt 0:00:30]} c6 {[%emt 0:00:30]} 4. b3 {[%emt 0:00:30]} Nbd7 {[%emt 0:00:30]} 5. Bb2 {[%emt 0:00:30]} e6 {[%emt 0:00:30]} 6. Be2 {[%emt 0:00:30]} Bd6 {[%emt 0:00:30]} 7. O-O {[%emt 0:00:30]} Qc7 {[%emt 0:00:30]} 8. d4 {[%emt 0:00:30]} O-O {[%emt 0:00:30]} 9. Bd3 {[%emt 0:00:30]} c5 {[%emt 0:00:30]} 10. c3 {[%emt 0:00:30]} b6 {[%emt 0:00:30]} 11. Nbd2 {[%emt 0:00:30]} Bb7 {[%emt 0:00:30]} 12. Ne5 {[%emt 0:00:30]} Ne4 {[%emt 0:00:30]} 13. Bxe4 {[%emt 0:00:30]} dxe4 {[%emt 0:00:30]} 14. Ndc4 {[%emt 0:00:30]} Nf6 {[%emt 0:00:30]} 15. Nxd6 {[%emt 0:00:30]} Qxd6 {[%emt 0:00:30]} 16. c4 {[%emt 0:00:30]} Rfd8 {[%emt 0:00:30]} 17. Qe1 {[%emt 0:00:30]} a5 {[%emt 0:00:30]} 18. a4 {[%emt 0:00:30]} Rac8 {[%emt 0:00:30]} 19. Qg3 {[%emt 0:00:30]} Nh5 {[%emt 0:00:30]} 20. Qh4 {[%emt 0:00:30]} Nf6 {[%emt 0:00:30]} 21. Qg5 {[%emt 0:00:30]} h6 {[%emt 0:00:30]} 22. Qg3 {[%emt 0:00:30]} cxd4 {[%emt 0:00:30]} 23. Bxd4 {[%emt 0:00:30]} Ne8 {[%emt 0:00:30]} 24. Rfd1 {[%emt 0:00:30]} Qb4 {[%emt 0:00:30]} 25. Rab1 {[%emt 0:00:30]} Rd6 {[%emt 0:00:30]} 26. Ng4 {[%emt 0:00:30]} Kh7 {[%emt 0:00:30]} 27. Qe1 {[%emt 0:00:30]} Qxe1+ {[%emt 0:00:30]} 28. Rxe1 {[%emt 0:00:30]} h5 {[%emt 0:00:30]} 29. Nf2 {[%emt 0:00:30]} f6 {[%emt 0:00:30]} 30. Nd1 {[%emt 0:00:30]} Nc7 {[%emt 0:00:30]} 31. Nc3 {[%emt 0:00:30]} Kg6 {[%emt 0:00:30]} 32. Kf2 {[%emt 0:00:30]} Kf5 {[%emt 0:00:30]} 33. Nb5 {[%emt 0:00:30]} Nxb5 {[%emt 0:00:30]} 34. axb5 {[%emt 0:00:30]} e5 {[%emt 0:00:30]} 35. fxe5 {[%emt 0:00:30]} fxe5 {[%emt 0:00:30]} 36. Bc3 {[%emt 0:00:30]} Rd3 {[%emt 0:00:30]} 37. Rec1 {[%emt 0:00:30]} a4 {[%emt 0:00:30]} 38. bxa4 {[%emt 0:00:30]} Rxc4 {[%emt 0:00:30]} 39. Bb4 {[%emt 0:00:30]} Rxc1 {[%emt 0:00:30]} 40. Rxc1 {[%emt 0:00:30]} Rb3 {[%emt 0:00:30]} 41. Bd6 {[%emt 0:00:30]} Bd5 {[%emt 0:00:30]} 42. Bc7 {[%emt 0:00:30]} Rb2+ {[%emt 0:00:30]} 43. Kg1 {[%emt 0:00:30]} Ra2 {[%emt 0:00:30]} 44. Bxb6 {[%emt 0:00:30]} Rxa4 {[%emt 0:00:30]} 45. Rb1 {[%emt 0:00:30]} Ra3 {[%emt 0:00:30]} 46. Rb2 {[%emt 0:00:30]} Rb3 {[%emt 0:00:30]} 47. Rxb3 {[%emt 0:00:30]} Bxb3 {[%emt 0:00:30]} 48. Bd8 {[%emt 0:00:30]} g5 {[%emt 0:00:30]} 49. Kf2 {[%emt 0:00:30]} Bd5 {[%emt 0:00:30]} 50. b6 {[%emt 0:00:30]} Bb7 {[%emt 0:00:30]} 51. Ke2 {[%emt 0:00:30]} Ba6+ {[%emt 0:00:30]} 52. Kd2 {[%emt 0:00:30]} g4 {[%emt 0:00:30]} 53. Ke1 {[%emt 0:00:30]} Bb7 {[%emt 0:00:30]} 54. Kf2 {[%emt 0:00:30]} Bc6 {[%emt 0:00:30]} 55. Kg3 {[%emt 0:00:30]} Bb7 {[%emt 0:00:30]} 56. Kh4 {[%emt 0:00:30]} Kg6 {[%emt 0:00:30]} 57. Bc7 {[%emt 0:00:30]} Bc6 {[%emt 0:00:30]} 58. Bxe5 {[%emt 0:00:30]} Bb7 {[%emt 0:00:30]} 59. Bc7 {[%emt 0:00:30]} Bc6 {[%emt 0:00:30]} 60. Kg3 {[%emt 0:00:30]} Kf5 {[%emt 0:00:30]} 61. Kf2 {[%emt 0:00:30]} Bb7 {[%emt 0:00:30]} 62. Ke2 {[%emt 0:00:30]} Ke6 {[%emt 0:00:30]} 63. Kd2 {[%emt 0:00:30]} Kd5 {[%emt 0:00:30]} 64. Bd8 {[%emt 0:00:30]} Kc4 {[%emt 0:00:30]} 65. Ke2 {[%emt 0:00:30]} Kd5 {[%emt 0:00:30]} 66. Bf6 {[%emt 0:00:30]} Ke6 {[%emt 0:00:30]} 67. Bh4 {[%emt 0:00:30]} Bc6 {[%emt 0:00:30]} 68. Kd2 {[%emt 0:00:30]} Kd5 {[%emt 0:00:30]} 69. Be7 {[%emt 0:00:30]} Kc4 {[%emt 0:00:30]} 70. Kc2 {[%emt 0:00:30]} Bb7 {[%emt 0:00:30]} 71. Bd8 {[%emt 0:00:30]} Bc6 {[%emt 0:00:30]} 72. Kd2 {[%emt 0:00:30]} Bb7 {[%emt 0:00:30]} 1/2-1/2

[Event "Silves Open 2025"]
[Site "Fissul"]
[Date "2025.03.04"]
[Round "5.21"]
[White "Van Ginkel, Henk"]
[Black "Esteves, Goncalo Maria Franco"]
[Result "0-1"]
[Annotator "TA"]
[ECO "A83"]
[WhiteElo "1811"]
[BlackElo "1962"]
[PlyCount "85"]
[EventDate "2025.03.03"]
[EventType "swiss"]
[EventCountry "POR"]
[SourceTitle "playchess.com"]
[Source "ChessBase"]
[SourceQuality "1"]
[TimeControl "5400+30"]

{[%evp 11,85,63,63,13,21,22,5,6,47,43,63,45,54,32,48,28,29,3,12,20,15,10,6,10,0,2,3,0,4,0,-5,-4,9,-54,-38,-78,15,9,31,-96,-99,-97,-42,-58,-74,-121,-37,-119,-98,-131,-42,-141,-148,-192,-177,-187,-181,-275,-262,-271,-241,-364,-304,-363,-365,-363,-368,-487,-504,-547,-528,-550,-465,-666,-664,-622]} 1. d4 {[%emt 0:00:16]} f5 {[%emt 0:00:55]} 2. Nc3 {[%emt 0:00:16]} Nf6 {[%emt 0:00:16]} 3. Bg5 {[%emt 0:00:22]} e6 {[%emt 0:02:15]} 4. e4 {[%emt 0:00:36]} fxe4 {[%emt 0:00:18]} 5. Nxe4 {[%emt 0:00:19]} Be7 {[%emt 0:00:37]} 6. Bxf6 {[%emt 0:17:11]} Bxf6 {[%emt 0:00:10]} 7. Nxf6+ {[%emt 0:10:41] A83: Dutch Defence: Staunton Gambit with 3 Nc3 Nf6 4 Bg5.} (7. Nf3 $14) 7... Qxf6 $11 {[%emt 0:00:07]} 8. Bd3 {[%emt 0:02:28]} O-O {[%emt 0:03:01][%csl Gf8][%cal Rf6f2] [#]} 9. Qf3 $146 {[%emt 0:03:00] The position is equal.} ({Predecessor:} 9. Nf3 Nc6 10. c3 d6 11. O-O e5 12. dxe5 Nxe5 13. Nxe5 Qxe5 14. Re1 Qf4 15. Qc2 Bf5 16. Bxf5 Qxf5 17. Qxf5 Rxf5 {1-0 Truskavetsky,A (2348)-Kazmaier,D (2180) Titled Tuesday intern op 12th Mar Late blitz 2024 (8)}) 9... Qh4 {[%emt 0:10:13]} (9... Nc6 {simplifies} 10. Qxf6 Rxf6 11. Nf3 Nb4) 10. Qe3 {[%emt 0:02:48]} c5 {[%emt 0:04:35]} 11. Nf3 {[%emt 0:06:32]} cxd4 {[%emt 0:03:31]} 12. Qxd4 {[%emt 0:07:46] A sharp opening} (12. Nxd4 {is more complex.} Nc6 13. Nxc6 bxc6 14. O-O) 12... Qxd4 {[%emt 0:02:24]} 13. Nxd4 {[%emt 0:00:17]} d5 {[%emt 0:00:12]} 14. Nb5 {[%emt 0:09:53] [#] Hoping for Nc7.} Nc6 {[%emt 0:01:21]} 15. O-O {[%emt 0:03:21]} a6 {[%emt 0:06:35]} 16. Nd6 {[%emt 0:01:57]} Rd8 {[%emt 0:01:56]} 17. Nxc8 {[%emt 0:00:20]} Raxc8 {[%emt 0:00:04][%cal Ba8c8,Bc8c7,Bc7d7][%mdl 32]} 18. c3 {[%emt 0:03:51] Prevents Nb4} e5 {[%emt 0:02:18]} 19. Bf5 {[%emt 0:03:00]} Rc7 {[%emt 0:01:58]} 20. Be6+ {[%emt 0:00:55]} Kf8 {[%emt 0:00:28]} 21. Rad1 {[%emt 0:00:38]} d4 {[%emt 0:03:12]} 22. c4 {[%emt 0:05:08]} ({White should try} 22. Bf5 $11) 22... g6 $15 {[%emt 0:13:30]} 23. a3 {[%emt 0:01:09]} Re8 {[%emt 0:15:16]} (23... Ke7 $17 24. Bd5 Na5) 24. Bd5 $11 {[%emt 0:00:29]} Rd7 {[%emt 0:04:40]} 25. Bxc6 {[%emt 0:04:14]} (25. Rfe1 $14) 25... bxc6 $14 {[%emt 0:00:10][%mdl 4096] Endgame KRR-KRR} 26. f3 {[%emt 0:00:22]} Ke7 {[%emt 0:13:21]} (26... a5 $17 27. Rfe1 c5) 27. Rfe1 $15 {[%emt 0:00:51]} Kf6 {[%emt 0:00:05]} 28. Kf2 {[%emt 0:02:29]} (28. b4 $142) 28... g5 {[%emt 0:00:37]} ({Better is} 28... a5 $17 29. Re4 Rb8) 29. h3 {[%emt 0:01:46]} (29. b4 $15) 29... Rb8 {[%emt 0:00:33]} 30. Re2 {[%emt 0:01:38]} Rdb7 {[%emt 0:02:01]} (30... Rb3 $17 31. Rde1 Re7) 31. Rdd2 {[%emt 0:01:33]} (31. b4 $15) 31... Rb3 $17 {[%emt 0:00:33]} 32. g3 {[%emt 0:02:54]} Kf5 {[%emt 0:00:55]} 33. g4+ {[%emt 0:00:35]} Kf6 {[%emt 0:00:13]} 34. Ke1 {[%emt 0:00:41]} (34. Kg3 {was necessary.}) 34... Rxf3 $19 {[%emt 0:00:24]} 35. Rf2 {[%emt 0:03:26]} Rbb3 {[%emt 0:00:10] Threatens to win with ...Rf4.} 36. a4 {[%emt 0:00:10]} (36. Rxf3+ $142 Rxf3 37. Rh2) 36... Rbe3+ {[%emt 0:00:18]} 37. Rde2 {[%emt 0:01:05]} Rxf2 {[%emt 0:00:34]} 38. Kxf2 {[%emt 0:00:01]} Rxh3 {[%emt 0:00:32] KR-KR. Black is two pawns up.} 39. b4 {[%emt 0:00:26]} Rb3 {[%emt 0:00:13] Black is clearly winning.} 40. b5 {[%emt 0:00:27]} axb5 {[%emt 0:00:13]} 41. cxb5 {[%emt 0:00:27]} cxb5 {[%emt 0:00:03]} 42. axb5 {[%emt 0:00:23]} (42. Ra2 $142 b4 43. a5) 42... Rxb5 {[%emt 0:00:09]} 43. Kf3 {[%emt 0:00:08] Weighted Error Value: White=0.45/Black=0.20 (precise)   Mistake:       	White=8     	Black=4      Inaccurate:     	White=4     	Black=1      OK:         	White=10    	Black=15     Best:        	---       	Black=3} 0-1

[Event "Silves Open 2025"]
[Site "Fissul"]
[Date "2025.03.04"]
[Round "5.23"]
[White "Sanchez Guirado, Francisco"]
[Black "Munno Moyano, Mario"]
[Result "1/2-1/2"]
[Annotator "NA RC"]
[ECO "A39"]
[WhiteElo "2286"]
[BlackElo "1755"]
[PlyCount "61"]
[EventDate "2025.03.03"]
[EventType "swiss"]
[EventCountry "POR"]
[SourceTitle "playchess.com"]
[Source "ChessBase"]
[SourceQuality "1"]
[TimeControl "5400+30"]

1. Nf3 {[%emt 1:31:00]} g6 2. c4 {[%emt 0:00:30]} Bg7 {[%emt 1:31:30]} 3. g3 {[%emt 0:00:30]} c5 {[%emt 0:00:30]} 4. Bg2 {[%emt 0:00:30]} Nc6 {[%emt 0:00:30]} 5. O-O {[%emt 0:00:30]} Nf6 6. Nc3 {[%emt 0:00:30]} O-O 7. d4 {[%emt 0:00:30]} cxd4 8. Nxd4 {[%emt 0:00:30]} Nxd4 9. Qxd4 {[%emt 0:00:30]} a6 10. Qd2 {[%emt 0:00:30]} Rb8 {[%emt 0:03:00]} 11. b3 d6 {[%emt 0:00:30]} 12. Bb2 {[%emt 0:01:00]} Bd7 {[%emt 0:00:30]} 13. Nd5 {[%emt 0:00:30]} Nxd5 {[%emt 0:00:30]} 14. Bxg7 {[%emt 0:00:30]} Kxg7 {[%emt 0:00:30]} 15. cxd5 {[%emt 0:00:30]} Qb6 {[%emt 0:00:30]} 16. Rfc1 {[%emt 0:00:30]} Rbc8 {[%emt 0:00:30]} 17. Rxc8 {[%emt 0:00:30]} Rxc8 {[%emt 0:00:30]} 18. Rc1 {[%emt 0:00:30]} Rxc1+ {[%emt 0:00:30]} 19. Qxc1 {[%emt 0:00:30]} Qc5 {[%emt 0:00:30]} 20. Qxc5 {[%emt 0:00:30]} dxc5 {[%emt 0:00:30]} 21. e4 {[%emt 0:00:30]} b5 {[%emt 0:00:30]} 22. Bf1 {[%emt 0:00:30]} f5 {[%emt 0:00:30]} 23. f3 {[%emt 0:00:30]} fxe4 {[%emt 0:00:30]} 24. fxe4 {[%emt 0:00:30]} Kf6 {[%emt 0:00:30]} 25. Kf2 {[%emt 0:00:30]} Ke5 {[%emt 0:00:30]} 26. Ke3 {[%emt 0:00:30]} Bc8 {[%emt 0:00:30]} 27. Bd3 {[%emt 0:00:30]} Bg4 {[%emt 0:00:30]} 28. Bf1 {[%emt 0:00:30]} Bd7 {[%emt 0:00:30]} 29. Bd3 {[%emt 0:00:30]} Bg4 {[%emt 0:00:30]} 30. Bf1 {[%emt 0:00:30]} Bd7 {[%emt 0:00:30]} 31. Bd3 {[%emt 0:00:30]} 1/2-1/2

[Event "Silves Open 2025"]
[Site "Fissul"]
[Date "2025.03.04"]
[Round "5.24"]
[White "Finkler, Kai Andreas"]
[Black "Crow, Steve"]
[Result "0-1"]
[Annotator "TA"]
[ECO "B01"]
[WhiteElo "1990"]
[BlackElo "1742"]
[PlyCount "151"]
[EventDate "2025.03.03"]
[EventType "swiss"]
[EventCountry "POR"]
[SourceTitle "playchess.com"]
[Source "ChessBase"]
[SourceQuality "1"]
[TimeControl "5400+30"]

{[%evp 15,151,8,23,12,22,-7,11,20,43,-15,41,-31,0,-16,-13,-7,9,0,7,-379,-383,-378,-375,-494,-486,-466,-486,-484,-443,-627,-637,-773,-764,-788,-789,-830,-830,-938,-873,-861,-872,-871,-802,-855,-782,-821,-820,-821,-728,-765,-761,-833,-716,-828,-828,-852,-855,-863,-853,-816,-812,-945,-951,-971,-975,-986,-953,-1046,-1057,-29987,-29988,-29987,-29986,-29988,-29987,-29989,-29987,-29987,-29983,-29983,-29984,-29990,-29957,-29981,-5706,-29984,0,-4833,0,-29990,-5431,-29985,-5018,-29981,-29982,-29982,-29983,-29983,-29984,-29987,-29984,-29986,-29984,-29989,-29988,-29991,-29987,-29991,-29986,-29991,-29990,-29990,-29989,-29988,-29989,-29990,-29989,-29989,-29989,-29991,-29989,-29991,-29988,-29979,-29980,-29984,-29985,-29979,-29979,-29990,-29988,-29989,0,-29990,-29991,-29991,-9300,-29995]} 1. e4 {[%emt 0:00:04]} d5 {[%emt 0:00:19]} 2. exd5 {[%emt 0:00:54]} Qxd5 {[%emt 0:00:08]} 3. Nc3 {[%emt 0:00:10]} Qa5 {[%emt 0:00:10]} 4. d4 {[%emt 0:00:38]} Nf6 {[%emt 0:00:09]} 5. Nf3 {[%emt 0:00:25][%cal Bg1f3,Bf3e5,Be5c4][%mdl 32]} c6 {[%emt 0:00:21]} 6. Be2 {[%emt 0:00:24]} Bf5 {[%emt 0:00:22]} 7. O-O {[%emt 0:01:32]} e6 {[%emt 0:00:54]} 8. Ne5 {[%emt 0:02:46]} Nbd7 {[%emt 0:01:11]} 9. Nc4 {[%emt 0:02:15] B01: Scandinavian Defence.} Qc7 {[%emt 0:01:41]} 10. Bg5 {[%emt 0:15:31]} b5 {[%emt 0:09:38]} 11. Ne3 {[%emt 0:00:39] And now Nxf5 would win. A sharp opening. The position is equal.} Bg6 {[%emt 0:01:02]} 12. Bf3 {[%emt 0:00:50]} ({Better is} 12. d5 $1 $14) 12... a6 $146 {[%emt 0:06:26]} ({Black should try} 12... Rd8 $11) (12... b4 13. Ne2 Bd6 14. Kh1 Ne4 {½-½ Khamrakulov,I (2451)-Jirovsky,M (2452) Tanta op 4th 2001 (8)}) 13. Re1 {[%emt 0:13:49]} (13. d5 $14) 13... Be7 {[%emt 0:06:31]} 14. d5 {[%emt 0:02:07]} Rd8 {[%emt 0:10:36] Threatening ...Ne5.} 15. dxe6 {[%emt 0:02:52]} (15. dxc6 Ne5 16. Qe2 Nxc6 17. Bxc6+ Qxc6) 15... Ne5 $132 {[%emt 0:02:20][%mdl 2048] Black is fighting back} (15... fxe6 {simplifies} 16. Qe2 O-O 17. Nf1 e5) 16. exf7+ {[%emt 0:11:20]} Nxf7 {[%emt 0:01:30]} 17. Qe2 {[%emt 0:00:09][%mdl 8192]} (17. Ned5 $11 cxd5 18. Bxf6 gxf6 19. Nxd5 Rxd5 20. Bxd5 (20. Qxd5 O-O $11)) 17... Nxg5 $19 {[%emt 0:02:31]} 18. Bxc6+ {[%emt 0:00:13]} Qxc6 {[%emt 0:00:18]} 19. Ned5 {[%emt 0:00:13]} Nxd5 {[%emt 0:07:49]} 20. Nxd5 {[%emt 0:01:30][%csl Gd5,Ge1][%cal Re2e7]} Ne4 {[%emt 0:05:32]} 21. Nxe7 {[%emt 0:00:35]} Kxe7 {[%emt 0:00:28]} 22. Qg4 {[%emt 0:03:00]} (22. f3 $142) 22... Kf7 {[%emt 0:03:18]} 23. h4 {[%emt 0:04:47]} Nf6 {[%emt 0:06:28]} 24. Qb4 {[%emt 0:03:58]} Rhe8 {[%emt 0:01:45]} (24... Qxc2 $2 {too greedy.} 25. Qe7+ Kg8 26. Qxd8+ Be8 27. Rxe8+ Kf7 28. Re7+ (28. Rxh8 Qc4 $18) 28... Kg6 29. Qxh8 $18) 25. a4 {[%emt 0:00:53]} Qc4 {[%emt 0:05:41]} 26. Qa5 {[%emt 0:00:19]} bxa4 {[%emt 0:00:43]} 27. Rxe8 {[%emt 0:01:18]} Rxe8 {[%emt 0:00:27]} 28. Rxa4 {[%emt 0:00:11]} Qc6 {[%emt 0:04:16]} 29. Ra3 {[%emt 0:03:57]} Nd5 {[%emt 0:06:51]} 30. h5 {[%emt 0:03:33]} Bxc2 {[%emt 0:02:08]} 31. h6 {[%emt 0:00:34]} Qe6 {[%emt 0:02:38]} 32. hxg7 {[%emt 0:01:39]} Qe1+ {[%emt 0:00:40]} 33. Qxe1 {[%emt 0:00:02]} Rxe1+ {[%emt 0:00:09]} 34. Kh2 {[%emt 0:00:04]} Nb4 {[%emt 0:01:21]} 35. Rg3 {[%emt 0:00:44]} Bg6 {[%emt 0:00:47]} 36. Rg4 {[%emt 0:00:19]} Nd3 {[%emt 0:00:54]} 37. Ra4 {[%emt 0:01:47]} Re6 {[%emt 0:00:43]} 38. b4 {[%emt 0:00:12]} Kxg7 {[%emt 0:00:35]} 39. f3 {[%emt 0:00:28]} Be8 {[%emt 0:00:51]} 40. Ra5 {[%emt 0:01:07]} Bb5 {[%emt 0:01:17]} 41. Kg3 {[%emt 0:01:07]} Rg6+ {[%emt 0:00:35]} 42. Kh3 {[%emt 0:00:26]} Nf4+ {[%emt 0:00:34]} 43. Kh2 {[%emt 0:00:27]} Rxg2+ {[%emt 0:00:32]} 44. Kh1 {[%emt 0:00:01]} Rg3 {[%emt 0:00:52]} 45. Ra3 {[%emt 0:00:28]} Be2 {[%emt 0:02:11]} 46. Kh2 {[%emt 0:00:51]} Rh3+ {[%emt 0:01:01]} 47. Kg1 {[%emt 0:00:15]} Rxf3 {[%emt 0:00:52]} 48. Ra2 {[%emt 0:00:29]} Rb3 {[%emt 0:01:17]} 49. Kf2 {[%emt 0:00:19]} Nd3+ {[%emt 0:01:18]} 50. Kg2 {[%emt 0:00:29]} Nf4+ {[%emt 0:01:15]} (50... Rxb4 $142 51. Kg3 Rg4+ 52. Kh2 Nf4 53. Ra3 Bc4 54. Rg3 Rxg3 55. Kxg3 Ne2+ 56. Kf3 a5 57. Ke4 a4 58. Ke5 a3 59. Kd6 a2 60. Kc5 Bd3 (60... a1=B $2 61. Kxc4 Nf4 62. Kb5 $19) 61. Kd5 a1=Q (61... a1=B 62. Ke6 h5 63. Kd7 h4 64. Ke7 h3 65. Ke6 h2 66. Kd7 h1=Q 67. Kd6 Qb7 68. Kc5 Bd4+ 69. Kd6 Qc8 70. Ke7 Bc5#) 62. Kc6 Qa6+ 63. Kc7 Kf7 (63... Qa5+ 64. Kc6 Qa6+ 65. Kd7 Qb6 66. Ke7 Qc7+ 67. Ke8 Bg6#) 64. Kd7 Qb6 65. Kc8 Bf5#) 51. Kf2 $1 {[%emt 0:00:02]} Rf3+ {[%emt 0:00:18]} 52. Kg1 {[%emt 0:01:29]} Rf1+ {[%emt 0:00:23]} 53. Kh2 {[%emt 0:00:05]} Rb1 {[%emt 0:00:11]} (53... h5 $142 54. b5 axb5 (54... Bxb5 $2 55. Kg3 $19) 55. Kg3 Rf3+ 56. Kh2 h4 57. Rxe2 Nxe2 (57... Rh3+ {leads to mate.} 58. Kg1 Nxe2+ 59. Kf2 Nf4 60. Kg1 Rg3+ 61. Kf2 Kg6 62. Ke1 Rg2 63. Kd1 h3 64. Kc1 h2 65. Kd1 h1=Q#) 58. Kg2 Nd4 (58... Rg3+ 59. Kf1 Nf4 60. Kf2 b4 61. Kf1 b3 62. Ke1 Rg2 63. Kd1 b2 64. Ke1 b1=Q#) 59. Kg1 b4 60. Kg2 b3 61. Kh2 b2 (61... Rf2+ 62. Kh3 b2 63. Kxh4 b1=Q 64. Kh3 Qg1 65. Kh4 Rh2#) 62. Kg2 b1=Q (62... b1=B 63. Kg1 Bd3 64. Kg2 Bf1+ 65. Kh2 Ne2 66. Kh1 Rh3#) 63. Kh2 Qg6 64. Kh1 Rh3#) 54. Kg3 {[%emt 0:01:15]} Rxb4 {[%emt 0:00:07]} 55. Rd2 {[%emt 0:00:07]} Re4 {[%emt 0:00:35]} 56. Rd7+ {[%emt 0:00:26]} Kg6 {[%emt 0:00:15]} 57. Rd6+ {[%emt 0:00:05]} Re6 {[%emt 0:00:15]} 58. Rd4 {[%emt 0:00:00]} Nh5+ {[%emt 0:00:27]} 59. Kh4 {[%emt 0:00:46]} Rf6 {[%emt 0:00:28]} 60. Kh3 {[%emt 0:00:39]} Rf5 {[%emt 0:00:46]} 61. Rd6+ {[%emt 0:00:43]} Nf6 {[%emt 0:00:13]} 62. Rd2 {[%emt 0:00:11]} Bf1+ {[%emt 0:00:10]} 63. Kh2 {[%emt 0:00:17]} a5 {[%emt 0:00:10]} 64. Ra2 {[%emt 0:00:13]} Ne4 {[%emt 0:00:30]} 65. Ra4 {[%emt 0:00:24]} Re5 {[%emt 0:00:13]} 66. Ra1 {[%emt 0:00:32]} Nd2 {[%emt 0:00:52]} 67. Rd1 {[%emt 0:00:19]} Rd5 {[%emt 0:00:21]} 68. Ra1 {[%emt 0:01:07]} Bc4 {[%emt 0:00:24]} 69. Kg3 {[%emt 0:00:14]} Nb3 {[%emt 0:00:23]} 70. Ra4 {[%emt 0:00:18]} Bb5 {[%emt 0:01:19]} 71. Re4 {[%emt 0:00:45]} a4 {[%emt 0:00:34]} 72. Rb4 {[%emt 0:00:10]} Rd3+ {[%emt 0:00:45]} 73. Kh2 {[%emt 0:00:27]} Rd5 {[%emt 0:00:37]} 74. Kg3 $1 {[%emt 0:00:13] [#]} a3 $1 {[%emt 0:00:29]} 75. Rxb3 {[%emt 0:00:02] [#]} (75. Re4 a2) 75... Rd4 {[%emt 0:05:20]} 76. Rd3 {[%emt 0:25:01] Weighted Error Value: White=0.64/Black=0.16 (very precise)   Loses game:     	White=1     	---        Mistake:       	White=3     	Black=1      Inaccurate:     	White=3     	---        OK:         	White=4     	Black=4      Best:        	White=1     	Black=1} 0-1

[Event "Silves Open 2025"]
[Site "Fissul"]
[Date "2025.03.04"]
[Round "5.25"]
[White "Goncalves, Samuel Jesus P"]
[Black "Peixoto, Helio Ricardo Soutin"]
[Result "0-1"]
[Annotator "NA"]
[ECO "E90"]
[WhiteElo "2280"]
[BlackElo "1918"]
[PlyCount "78"]
[EventDate "2025.03.03"]
[EventType "swiss"]
[EventCountry "POR"]
[SourceTitle "playchess.com"]
[Source "ChessBase"]
[SourceQuality "1"]
[TimeControl "5400+30"]

1. Nf3 {[%emt 1:31:00]} Nf6 {[%emt 1:31:00]} 2. c4 {[%emt 0:00:30]} g6 {[%emt 0:00:30]} 3. Nc3 {[%emt 0:00:30]} Bg7 {[%emt 0:00:30]} 4. e4 {[%emt 0:00:30]} d6 {[%emt 0:00:30]} 5. d4 {[%emt 0:00:30]} O-O {[%emt 0:00:30]} 6. h3 {[%emt 0:00:30]} Nbd7 {[%emt 0:00:30]} 7. Be3 {[%emt 0:00:30]} c5 {[%emt 0:00:30]} 8. d5 {[%emt 0:00:30]} b5 {[%emt 0:00:30]} 9. Qc2 {[%emt 0:00:30]} Qa5 {[%emt 0:00:30]} 10. Bd2 {[%emt 0:00:30]} b4 {[%emt 0:00:30]} 11. Nd1 {[%emt 0:00:30]} Qb6 {[%emt 0:00:30]} 12. Bd3 {[%emt 0:00:30]} a5 {[%emt 0:00:30]} 13. b3 {[%emt 0:00:30]} Nxe4 {[%emt 0:00:30]} 14. Rb1 {[%emt 0:00:30]} Nxd2 {[%emt 0:00:30]} 15. Qxd2 {[%emt 0:00:30]} Ne5 {[%emt 0:00:30]} 16. Nxe5 {[%emt 0:00:30]} Bxe5 {[%emt 0:00:30]} 17. O-O {[%emt 0:00:30]} a4 {[%emt 0:00:30]} 18. Ne3 {[%emt 0:00:30]} Bd7 {[%emt 0:00:30]} 19. Kh1 {[%emt 0:00:30]} f5 {[%emt 0:00:30]} 20. f4 {[%emt 0:00:30]} Bf6 {[%emt 0:00:30]} 21. g4 {[%emt 0:00:30]} fxg4 {[%emt 0:00:30]} 22. hxg4 {[%emt 0:00:30]} axb3 {[%emt 0:00:30]} 23. axb3 {[%emt 0:00:30]} Qa6 {[%emt 0:00:30]} 24. g5 {[%emt 0:00:30]} Bd4 {[%emt 0:00:30]} 25. Rf3 {[%emt 0:00:30]} Qa2 {[%emt 0:00:30]} 26. Bc2 {[%emt 0:00:30]} Bxe3 {[%emt 0:00:30]} 27. Rxe3 {[%emt 0:00:30]} Rxf4 {[%emt 0:00:30]} 28. Rxe7 {[%emt 0:00:30]} Rh4+ {[%emt 0:00:30]} 29. Kg1 {[%emt 0:00:30]} Bf5 {[%emt 0:00:30]} 30. Rc1 {[%emt 0:00:30]} Qb2 {[%emt 0:00:30]} 31. Qe3 {[%emt 0:00:30]} Rg4+ {[%emt 0:00:30]} 32. Kh1 {[%emt 0:00:30]} Rf8 {[%emt 0:00:30]} 33. Re8 {[%emt 0:00:30]} Rh4+ {[%emt 0:00:30]} 34. Kg1 {[%emt 0:00:30]} Rh3 {[%emt 0:00:30]} 35. Rxf8+ {[%emt 0:00:30]} Kxf8 {[%emt 0:00:30]} 36. Qf4 {[%emt 0:00:30]} Qe5 {[%emt 0:00:30]} 37. Rf1 {[%emt 0:00:30]} Rg3+ {[%emt 0:00:30]} 38. Kh2 {[%emt 0:00:30]} Qxf4 {[%emt 0:00:30]} 39. Rxf4 {[%emt 0:00:30]} Rxg5 {[%emt 0:00:30]} 0-1